fUST/lending_fUST_20240608
["ID","MTS","AMOUNT","RATE_DAILY","PERIOD"]
[328830133,1717853457865,-13531.19980849,0.000169,2]
[328830134,1717853457875,-261.8441986,0.000169,2]
[328830135,1717853457886,-261.84419858,0.000169,2]
[328830136,1717853457897,-261.84419858,0.000169,2]
[328830137,1717853457907,-261.84419858,0.000169,2]
[328830138,1717853457917,-261.84419858,0.000169,2]
[328830139,1717853458001,-423.5,0.00016936,2]
[328830140,1717853458011,-547.23,0.00016985,2]
[328830141,1717853458022,-547.23,0.00016985,2]
[328830142,1717853458031,-547.23,0.00016985,2]
[328830143,1717853458041,-547.23,0.00016985,2]
[328830144,1717853458051,-547.23,0.00016985,2]
[328830145,1717853458061,-154.98450155,0.00016986,2]
[328830146,1717853458072,-500.0,0.00016986,2]
[328830147,1717853458082,-608.49,0.00016986,2]
[328830148,1717853458092,-500.0,0.00016986,2]
[328830149,1717853458103,-500.0,0.00016986,2]
[328830150,1717853458112,-500.0,0.00016986,2]
[328830151,1717853458123,-500.0,0.00016986,2]
[328830152,1717853458135,-500.0,0.00016986,2]
[328830153,1717853458145,-500.0,0.00016986,2]
[328830154,1717853458155,-500.0,0.00016986,2]
[328830155,1717853458165,-998.49,0.00016986,2]
[328830156,1717853458178,-500.0,0.00016986,2]
[328830157,1717853458189,-500.0,0.00016986,2]
[328830158,1717853458199,-230.42337949,0.00016986,2]
[328830159,1717853458212,-500.0,0.00016986,2]
[328830160,1717853458221,-500.0,0.00016986,2]
[328830161,1717853458231,-498.62290276,0.00016986,2]
[328830162,1717853458241,-500.0,0.00016986,2]
[328830163,1717853458251,-565.44,0.00016986,2]
[328830164,1717853458261,-500.0,0.00016986,2]
[328830165,1717853458271,-500.0,0.00016986,2]
[328830166,1717853458282,-502.8434169,0.00016986,2]
[328830167,1717853458291,-500.0,0.00016986,2]
[328830168,1717853458301,-500.0,0.00016986,2]
[328830169,1717853458311,-500.0,0.00016986,2]
[328830170,1717853458322,-500.0,0.00016986,2]
[328830171,1717853458332,-500.0,0.00016986,2]
[328830172,1717853458342,-500.0,0.00016986,2]
[328830173,1717853458351,-812.32,0.00016986,2]
[328830174,1717853458362,-500.0,0.00016986,2]
[328830175,1717853458373,-500.0,0.00016986,2]
[328830176,1717853458383,-500.0,0.00016986,2]
[328830177,1717853458393,-500.0,0.00016986,2]
[328830178,1717853458403,-500.0,0.00016986,2]
[328830179,1717853458413,-500.0,0.00016986,2]
[328830180,1717853458423,-510.68,0.00016986,2]
[328830181,1717853458433,-500.0,0.00016986,2]
[328830182,1717853458443,-500.0,0.00016986,2]
[328830183,1717853458456,-500.0,0.00016986,2]
[328830184,1717853458465,-500.0,0.00016986,2]
[328830185,1717853458475,-500.0,0.00016986,2]
[328830186,1717853458484,-500.0,0.00016986,2]
[328830187,1717853458495,-500.0,0.00016986,2]
[328830188,1717853458506,-359.93715785,0.00016986,2]
[328830189,1717853458516,-580.56,0.00016986,2]
[328830190,1717853458526,-500.0,0.00016986,2]
[328830191,1717853458536,-500.0,0.00016986,2]
[328830192,1717853458546,-534.62502791,0.00016986,2]
[328830193,1717853458556,-1749.48,0.00016986,2]
[328830194,1717853458569,-572.47,0.00016986,2]
[328830195,1717853458579,-500.0,0.00016986,2]
[328830196,1717853458590,-500.0,0.00016986,2]
[328830197,1717853458601,-500.0,0.00016986,2]
[328830198,1717853458611,-500.0,0.00016986,2]
[328830199,1717853458621,-500.0,0.00016986,2]
[328830200,1717853458631,-500.0,0.00016986,2]
[328830201,1717853458642,-500.0,0.00016986,2]
[328830202,1717853458652,-500.0,0.00016986,2]
[328830203,1717853458663,-500.0,0.00016986,2]
[328830204,1717853458673,-557.21,0.00016986,2]
[328830205,1717853458683,-500.0,0.00016986,2]
[328830206,1717853458693,-500.0,0.00016986,2]
[328830207,1717853458703,-500.0,0.00016986,2]
[328830208,1717853458716,-500.0,0.00016986,2]
[328830209,1717853458725,-595.66116785,0.00016986,2]
[328830210,1717853458735,-500.0,0.00016986,2]
[328830211,1717853458745,-500.0,0.00016986,2]
[328830212,1717853458755,-500.0,0.00016986,2]
[328830213,1717853458766,-500.0,0.00016986,2]
[328830214,1717853458776,-500.0,0.00016986,2]
[328830215,1717853458785,-806.29,0.00016986,2]
[328830216,1717853458795,-500.0,0.00016986,2]
[328830217,1717853458804,-500.0,0.00016986,2]
[328830218,1717853458814,-500.0,0.00016986,2]
[328830219,1717853458823,-500.0,0.00016986,2]
[328830220,1717853458832,-500.0,0.00016986,2]
[328830221,1717853458842,-2075.49,0.00016986,2]
[328830222,1717853458853,-500.0,0.00016986,2]
[328830223,1717853458863,-500.0,0.00016986,2]
[328830224,1717853458872,-500.0,0.00016986,2]
[328830225,1717853458882,-500.0,0.00016986,2]
[328830226,1717853458891,-500.0,0.00016986,2]
[328830227,1717853458900,-500.0,0.00016986,2]
[328830228,1717853458911,-500.0,0.00016986,2]
[328830229,1717853458923,-500.0,0.00016986,2]
[328830230,1717853458933,-500.0,0.00016986,2]
[328830231,1717853458943,-500.0,0.00016986,2]
[328830232,1717853458953,-500.0,0.00016986,2]
[328830233,1717853458964,-500.0,0.00016986,2]
[328830234,1717853458973,-500.0,0.00016986,2]
[328830235,1717853458983,-757.26,0.00016986,2]
[328830236,1717853458993,-1127.04,0.00016986,2]
[328830237,1717853459003,-500.0,0.00016986,2]
[328830238,1717853459012,-480.50861842,0.00016986,2]
[328830239,1717853459022,-591.94,0.00016986,2]
[328830240,1717853459031,-500.0,0.00016986,2]
[328830241,1717853459042,-570.08,0.00016986,2]
[328830242,1717853459053,-500.0,0.00016986,2]
[328830243,1717853459063,-500.0,0.00016986,2]
[328830244,1717853459073,-500.0,0.00016986,2]
[328830245,1717853459084,-500.0,0.00016986,2]
[328830246,1717853459093,-500.0,0.00016986,2]
[328830247,1717853459103,-764.26,0.00016986,2]
[328830248,1717853459113,-302.85852039,0.00016986,2]
[328830249,1717853459124,-500.0,0.00016986,2]
[328830250,1717853459139,-504.80449744,0.00016986,2]
[328830251,1717853459149,-500.0,0.00016986,2]
[328830252,1717853459160,-500.0,0.00016986,2]
[328830253,1717853459170,-500.0,0.00016986,2]
[328830254,1717853459180,-500.0,0.00016986,2]
[328830255,1717853459196,-524.84,0.00016986,2]
[328830256,1717853459207,-1721.16,0.00016986,2]
[328830257,1717853459217,-500.0,0.00016986,2]
[328830258,1717853459227,-500.0,0.00016986,2]
[328830259,1717853459239,-500.0,0.00016986,2]
[328830260,1717853459249,-500.0,0.00016986,2]
[328830261,1717853459259,-500.0,0.00016986,2]
[328830262,1717853459270,-500.0,0.00016986,2]
[328830263,1717853459280,-500.0,0.00016986,2]
[328830264,1717853459292,-739.14,0.00016986,2]
[328830265,1717853459302,-500.0,0.00016986,2]
[328830266,1717853459313,-500.0,0.00016986,2]
[328830267,1717853459393,-500.0,0.00016986,2]
[328830268,1717853459403,-500.0,0.00016986,2]
[328830269,1717853459412,-500.0,0.00016986,2]
[328830270,1717853459424,-500.0,0.00016986,2]
[328830271,1717853459435,-500.0,0.00016986,2]
[328830272,1717853459445,-500.0,0.00016986,2]
[328830273,1717853459455,-500.0,0.00016986,2]
[328830274,1717853459466,-500.0,0.00016986,2]
[328830275,1717853459476,-500.0,0.00016986,2]
[328830276,1717853459486,-500.0,0.00016986,2]
[328830277,1717853459496,-500.0,0.00016986,2]
[328830278,1717853459507,-500.0,0.00016986,2]
[328830279,1717853459517,-500.0,0.00016986,2]
[328830280,1717853459527,-500.0,0.00016986,2]
[328830281,1717853459537,-1843.39,0.00016986,2]
[328830282,1717853459547,-539.62374135,0.00016986,2]
[328830283,1717853459557,-1927.33,0.00016986,2]
[328830284,1717853459567,-500.0,0.00016986,2]
[328830285,1717853459578,-1070.93,0.00016986,2]
[328830286,1717853459589,-555.46,0.00016986,2]
[328830287,1717853459600,-500.0,0.00016986,2]
[328830288,1717853459611,-500.0,0.00016986,2]
[328830289,1717853459621,-500.0,0.00016986,2]
[328830290,1717853459632,-500.0,0.00016986,2]
[328830291,1717853459642,-500.0,0.00016986,2]
[328830292,1717853459651,-531.088844,0.00016986,2]
[328830293,1717853459661,-500.0,0.00016986,2]
[328830294,1717853459671,-1015.53,0.00016986,2]
[328830295,1717853459681,-500.0,0.00016986,2]
[328830296,1717853459691,-500.0,0.00016986,2]
[328830297,1717853459700,-500.0,0.00016986,2]
[328830298,1717853459713,-500.0,0.00016986,2]
[328830299,1717853459722,-1759.84,0.00016986,2]
[328830300,1717853459733,-500.0,0.00016986,2]
[328830301,1717853459743,-500.0,0.00016986,2]
[328830302,1717853459753,-500.0,0.00016986,2]
[328830303,1717853459763,-500.0,0.00016986,2]
[328830304,1717853459773,-500.0,0.00016986,2]
[328830305,1717853459783,-500.0,0.00016986,2]
[328830306,1717853459792,-500.0,0.00016986,2]
[328830307,1717853459802,-693.89,0.00016986,2]
[328830308,1717853459812,-500.0,0.00016986,2]
[328830309,1717853459822,-500.0,0.00016986,2]
[328830310,1717853459834,-500.0,0.00016986,2]
[328830311,1717853459844,-500.0,0.00016986,2]
[328830312,1717853459854,-1980.3,0.00016986,2]
[328830313,1717853459863,-500.0,0.00016986,2]
[328830314,1717853459874,-500.0,0.00016986,2]
[328830315,1717853459885,-1487.23,0.00016986,2]
[328830316,1717853459896,-500.0,0.00016986,2]
[328830317,1717853459906,-500.0,0.00016986,2]
[328830318,1717853459916,-500.0,0.00016986,2]
[328830319,1717853459928,-500.0,0.00016986,2]
[328830320,1717853459940,-615.4,0.00016986,2]
[328830321,1717853459950,-500.0,0.00016986,2]
[328830322,1717853459961,-500.0,0.00016986,2]
[328830323,1717853459972,-500.0,0.00016986,2]
[328830324,1717853459984,-500.0,0.00016986,2]
[328830325,1717853459995,-500.0,0.00016986,2]
[328830326,1717853460006,-500.0,0.00016986,2]
[328830327,1717853460016,-500.0,0.00016986,2]
[328830328,1717853460026,-500.0,0.00016986,2]
[328830329,1717853460036,-964.19,0.00016986,2]
[328830330,1717853460046,-500.0,0.00016986,2]
[328830331,1717853460055,-163.92529026,0.00016986,2]
[328830332,1717853460065,-172.42216828,0.00016986,2]
[328830333,1717853460075,-500.0,0.00016986,2]
[328830334,1717853460085,-500.0,0.00016986,2]
[328830335,1717853460095,-935.59,0.00016986,2]
[328830336,1717853460106,-2478.2,0.00016986,2]
[328830337,1717853460117,-500.0,0.00016986,2]
[328830338,1717853460128,-500.0,0.00016986,2]
[328830339,1717853460138,-500.0,0.00016986,2]
[328830340,1717853460148,-500.0,0.00016986,2]
[328830341,1717853460158,-500.0,0.00016986,2]
[328830342,1717853460169,-500.0,0.00016986,2]
[328830343,1717853460179,-500.0,0.00016986,2]
[328830344,1717853460189,-500.0,0.00016986,2]
[328830345,1717853460199,-500.0,0.00016986,2]
[328830346,1717853460212,-500.0,0.00016986,2]
[328830347,1717853460222,-1210.94,0.00016986,2]
[328830348,1717853460231,-500.0,0.00016986,2]
[328830349,1717853460240,-500.0,0.00016986,2]
[328830350,1717853460250,-500.0,0.00016986,2]
[328830351,1717853460260,-500.0,0.00016986,2]
[328830352,1717853460270,-1157.58,0.00016986,2]
[328830353,1717853460280,-872.55,0.00016986,2]
[328830354,1717853460290,-500.0,0.00016986,2]
[328830355,1717853460300,-579.04683333,0.00016986,2]
[328830356,1717853460312,-226.81729045,0.00016986,2]
[328830357,1717853460322,-1019.74,0.00016986,2]
[328830358,1717853460332,-342.67040862,0.00016986,2]
[328830359,1717853460342,-3057.52,0.00016986,2]
[328830360,1717853460352,-625.91,0.00016986,2]
[328830361,1717853460362,-623.17,0.00016986,2]
[328830362,1717853460372,-1201.52,0.00016986,2]
[328830363,1717853460382,-500.0,0.00016986,2]
[328830364,1717853460393,-500.0,0.00016986,2]
[328830365,1717853460403,-230.4606114,0.00016986,2]
[328830366,1717853460413,-1908.91,0.00016986,2]
[328830367,1717853460423,-1671.88,0.00016986,2]
[328830368,1717853460433,-20820.28,0.00016986,2]
[328830369,1717853460443,-614.33,0.00016986,2]
[328830370,1717853460453,-500.0,0.00016986,2]
[328830371,1717853460464,-275.05148856,0.00016986,2]
[328830372,1717853460474,-500.0,0.00016986,2]
[328830373,1717853460485,-500.0,0.00016986,2]
[328830374,1717853460495,-500.0,0.00016986,2]
[328830375,1717853460505,-500.0,0.00016986,2]
[328830376,1717853460515,-500.0,0.00016986,2]
[328830377,1717853460525,-513.49072182,0.00016986,2]
[328830378,1717853460535,-575.64654104,0.00016986,2]
[328830379,1717853460545,-500.0,0.00016986,2]
[328830380,1717853460555,-1583.34,0.00016986,2]
[328830381,1717853460566,-500.0,0.00016986,2]
[328830382,1717853460576,-653.67,0.00016986,2]
[328830383,1717853460587,-500.0,0.00016986,2]
[328830384,1717853460663,-599.99,0.00016986,2]
[328830385,1717853460674,-500.0,0.00016986,2]
[328830386,1717853460684,-500.0,0.00016986,2]
[328830387,1717853460694,-3102.61,0.00016986,2]
[328830388,1717853460705,-925.67,0.00016986,2]
[328830389,1717853460715,-645.73,0.00016986,2]
[328830390,1717853460726,-500.0,0.00016986,2]
[328830391,1717853460737,-500.0,0.00016986,2]
[328830392,1717853460750,-500.0,0.00016986,2]
[328830393,1717853460760,-831.72,0.00016986,2]
[328830394,1717853460771,-500.0,0.00016986,2]
[328830395,1717853460781,-500.0,0.00016986,2]
[328830396,1717853460792,-3127.01,0.00016986,2]
[328830397,1717853460804,-157.17520691,0.00016986,2]
[328830398,1717853460814,-1333.96,0.00016986,2]
[328830399,1717853460825,-500.0,0.00016986,2]
[328830400,1717853460837,-338.69558664,0.00016986,2]
[328830401,1717853460848,-500.0,0.00016986,2]
[328830402,1717853460860,-500.0,0.00016986,2]
[328830403,1717853460871,-500.0,0.00016986,2]
[328830404,1717853460881,-500.0,0.00016986,2]
[328830405,1717853460891,-542.51,0.00016986,2]
[328830406,1717853460901,-500.0,0.00016986,2]
[328830407,1717853460911,-1929.47,0.00016986,2]
[328830408,1717853460921,-3901.22,0.00016986,2]
[328830409,1717853460932,-500.0,0.00016986,2]
[328830410,1717853460942,-1213.88,0.00016986,4]
[328830411,1717853460951,-587.77,0.00016986,2]
[328830412,1717853460962,-500.0,0.00016986,2]
[328830413,1717853460972,-500.0,0.00016986,2]
[328830414,1717853460982,-500.0,0.00016986,2]
[328830415,1717853460992,-500.0,0.00016986,2]
[328830416,1717853461002,-513.96670124,0.00016986,2]
[328830417,1717853461012,-500.0,0.00016986,2]
[328830418,1717853461022,-4566.05,0.00016986,2]
[328830419,1717853461032,-523.42532547,0.00016986,2]
[328830420,1717853461042,-528.98,0.00016986,2]
[328830421,1717853461053,-500.0,0.00016986,2]
[328830422,1717853461062,-500.0,0.00016986,2]
[328830423,1717853461074,-500.0,0.00016986,2]
[328830424,1717853461084,-1843.58,0.00016986,2]
[328830425,1717853461094,-495.33308101,0.00016986,2]
[328830426,1717853461104,-500.0,0.00016986,2]
[328830427,1717853461115,-500.0,0.00016986,2]
[328830428,1717853461130,-584.09640529,0.00016986,2]
[328830429,1717853461140,-4780.76,0.00016986,2]
[328830430,1717853461150,-500.0,0.00016986,2]
[328830431,1717853461160,-500.0,0.00016986,2]
[328830432,1717853461171,-8753.43,0.00016986,2]
[328830433,1717853461181,-534.8769073,0.00016986,2]
[328830434,1717853461191,-865.12,0.00016986,2]
[328830435,1717853461202,-613.11,0.00016986,2]
[328830436,1717853461213,-867.57,0.00016986,2]
[328830437,1717853461223,-500.0,0.00016986,2]
[328830438,1717853461232,-2381.46,0.00016986,2]
[328830439,1717853461246,-500.0,0.00016986,2]
[328830440,1717853461269,-726.6,0.00016986,2]
[328830441,1717853461286,-957.58,0.00016986,2]
[328830442,1717853461306,-500.0,0.00016986,2]
[328830443,1717853461327,-822.63,0.00016986,2]
[328830444,1717853461346,-500.0,0.00016986,2]
[328830445,1717853461364,-500.0,0.00016986,2]
[328830446,1717853461381,-500.0,0.00016986,2]
[328830447,1717853461398,-2264.13,0.00016986,2]
[328830448,1717853461417,-500.0,0.00016986,2]
[328830449,1717853461436,-500.0,0.00016986,2]
[328830450,1717853461451,-10823.93,0.00016986,2]
[328830451,1717853461469,-500.0,0.00016986,2]
[328830452,1717853461485,-500.0,0.00016986,2]
[328830453,1717853461502,-500.0,0.00016986,2]
[328830454,1717853461518,-1807.63,0.00016986,2]
[328830455,1717853461532,-706.93,0.00016986,2]
[328830456,1717853461547,-170.15179308,0.00016986,2]
[328830457,1717853461561,-500.0,0.00016986,2]
[328830458,1717853461578,-2069.46,0.00016986,2]
[328830459,1717853461593,-5699.48,0.00016986,2]
[328830460,1717853461608,-1703.73,0.00016986,2]
[328830461,1717853461622,-208.32338457,0.00016986,2]
[328830462,1717853462091,-2582.24661543,0.00016986,2]
[328830463,1717853462100,-386.73920165,0.00016986,2]
[328830464,1717853594289,3000.0,0.000169,30]
[328830465,1717853594740,3000.0,0.0001691,30]
[328830466,1717853595192,3000.0,0.0001692,30]
[328830467,1717853595724,3000.0,0.0001693,30]
[328830468,1717853596178,3000.0,0.0001694,30]
[328830469,1717853596518,5497.793147,0.0001695,30]
[328830470,1717853612416,4619.37351536,0.00016712,7]
[328830472,1717854016892,-9587.18,0.00015335,2]
[328830478,1717854192359,150.0,0.000169,30]
[328830558,1717854636388,-324.87774632,0.00015224,2]
[328830566,1717854639166,-24575.12225368,0.00015224,2]
[328830568,1717854639177,-839.4259617,0.00015249,2]
[328830570,1717854639187,-1881.2570651,0.00015324,2]
[328830571,1717854639197,-365.97822124,0.00016193,2]
[328830572,1717854639208,-11305.54504539,0.00016291,2]
[328830573,1717854639218,-153.0,0.00016293,2]
[328830574,1717854639228,-153.0,0.00016293,2]
[328830576,1717854639238,-153.0,0.00016293,2]
[328830577,1717854639250,-153.0,0.00016293,2]
[328830578,1717854639260,-153.0,0.00016294,2]
[328830579,1717854639270,-332.10844868,0.000163,2]
[328830580,1717854639280,-332.10844868,0.0001631,2]
[328830581,1717854639290,-332.10844868,0.00016319,2]
[328830582,1717854639299,-332.10844868,0.00016329,2]
[328830583,1717854639310,-332.10844868,0.00016338,2]
[328830584,1717854639320,-7318.47452839,0.0001639,2]
[328830585,1717854639329,-9587.15546833,0.00016399,2]
[328830586,1717854639339,-5751.56447924,0.000164,2]
[328830587,1717854639348,-5751.56447924,0.000164,2]
[328830588,1717854639358,-5751.56447924,0.000164,2]
[328830589,1717854639368,-5751.56447924,0.000164,2]
[328830590,1717854639378,-5751.56447924,0.000164,2]
[328830591,1717854639388,-5751.56447924,0.000164,2]
[328830592,1717854639397,-5751.56447924,0.000164,2]
[328830593,1717854639408,-39602.11130407,0.00016433,2]
[328830594,1717854639418,-6915.1,0.00016437,2]
[328830595,1717854639428,-1649.3457922,0.00016437,2]
[328830596,1717854639439,-500.0,0.00016438,2]
[328830597,1717854639449,-500.0,0.00016438,2]
[328830598,1717854639459,-500.0,0.00016438,2]
[328830599,1717854639468,-515.46654284,0.00016438,2]
[328830600,1717854639478,-500.0,0.00016438,2]
[328830601,1717854639488,-500.0,0.00016438,2]
[328830602,1717854639499,-500.0,0.00016438,2]
[328830603,1717854639509,-500.0,0.00016438,2]
[328830604,1717854639519,-500.0,0.00016438,2]
[328830605,1717854639659,-500.0,0.00016438,2]
[328830606,1717854639670,-500.0,0.00016438,2]
[328830607,1717854639680,-500.0,0.00016438,2]
[328830608,1717854639691,-500.0,0.00016438,2]
[328830609,1717854639701,-500.0,0.00016438,2]
[328830610,1717854639712,-500.0,0.00016438,2]
[328830611,1717854639723,-538.78,0.00016438,2]
[328830612,1717854639733,-500.0,0.00016438,2]
[328830613,1717854639745,-500.0,0.00016438,2]
[328830614,1717854639755,-500.0,0.00016438,2]
[328830615,1717854639765,-500.0,0.00016438,2]
[328830616,1717854639775,-500.0,0.00016438,2]
[328830617,1717854639785,-500.0,0.00016438,2]
[328830618,1717854639795,-500.0,0.00016438,2]
[328830619,1717854639805,-500.0,0.00016438,2]
[328830620,1717854639816,-500.0,0.00016438,2]
[328830621,1717854639826,-500.0,0.00016438,2]
[328830622,1717854639836,-500.0,0.00016438,2]
[328830623,1717854639847,-500.0,0.00016438,2]
[328830624,1717854639857,-500.0,0.00016438,2]
[328830625,1717854639868,-500.0,0.00016438,2]
[328830626,1717854639878,-500.0,0.00016438,2]
[328830627,1717854639888,-500.0,0.00016438,2]
[328830628,1717854639899,-500.0,0.00016438,2]
[328830629,1717854639909,-165.36070291,0.00016438,2]
[328830630,1717854639918,-500.0,0.00016438,2]
[328830631,1717854639928,-500.0,0.00016438,2]
[328830632,1717854639937,-500.0,0.00016438,2]
[328830633,1717854639947,-500.0,0.00016438,2]
[328830634,1717854639957,-500.0,0.00016438,2]
[328830635,1717854639967,-411.6235829,0.00016438,2]
[328830636,1717854639977,-500.0,0.00016438,2]
[328830637,1717854639987,-500.0,0.00016438,2]
[328830638,1717854639998,-500.0,0.00016438,2]
[328830639,1717854640007,-243.38315032,0.00016438,2]
[328830640,1717854640017,-500.0,0.00016438,2]
[328830641,1717854640026,-500.0,0.00016438,2]
[328830642,1717854640036,-500.0,0.00016438,2]
[328830643,1717854640046,-500.0,0.00016438,2]
[328830644,1717854640055,-500.0,0.00016438,2]
[328830645,1717854640066,-500.0,0.00016438,2]
[328830646,1717854640076,-500.0,0.00016438,2]
[328830647,1717854640086,-500.0,0.00016438,2]
[328830648,1717854640096,-500.0,0.00016438,2]
[328830649,1717854640106,-500.0,0.00016438,2]
[328830650,1717854640116,-500.0,0.00016438,2]
[328830651,1717854640125,-500.0,0.00016438,2]
[328830652,1717854640135,-500.0,0.00016438,2]
[328830653,1717854640146,-500.0,0.00016438,2]
[328830654,1717854640155,-500.0,0.00016438,2]
[328830655,1717854640165,-500.0,0.00016438,2]
[328830656,1717854640175,-500.0,0.00016438,2]
[328830657,1717854640184,-726.34,0.00016438,2]
[328830658,1717854640194,-500.0,0.00016438,2]
[328830659,1717854640204,-500.0,0.00016438,2]
[328830660,1717854640214,-391.79730431,0.00016438,2]
[328830661,1717854640224,-1059.58,0.00016438,2]
[328830662,1717854640234,-1868.73,0.00016438,2]
[328830663,1717854640245,-500.0,0.00016438,2]
[328830664,1717854640255,-500.0,0.00016438,2]
[328830665,1717854640264,-500.0,0.00016438,2]
[328830666,1717854640274,-500.0,0.00016438,2]
[328830667,1717854640284,-500.0,0.00016438,2]
[328830668,1717854640294,-500.0,0.00016438,2]
[328830669,1717854640304,-500.0,0.00016438,2]
[328830670,1717854640313,-683.43,0.00016438,2]
[328830671,1717854640323,-500.0,0.00016438,2]
[328830672,1717854640332,-592.79,0.00016438,2]
[328830673,1717854640341,-519.65,0.00016438,2]
[328830674,1717854640351,-500.0,0.00016438,2]
[328830675,1717854640360,-500.0,0.00016438,2]
[328830676,1717854640369,-500.0,0.00016438,2]
[328830677,1717854640379,-500.0,0.00016438,2]
[328830678,1717854640388,-443.91781131,0.00016438,2]
[328830679,1717854640398,-1018.04,0.00016438,2]
[328830680,1717854640408,-500.0,0.00016438,2]
[328830681,1717854640417,-500.0,0.00016438,2]
[328830682,1717854640428,-500.0,0.00016438,2]
[328830683,1717854640438,-500.0,0.00016438,2]
[328830684,1717854640448,-500.0,0.00016438,2]
[328830685,1717854640458,-500.0,0.00016438,2]
[328830686,1717854640468,-500.0,0.00016438,2]
[328830687,1717854640478,-500.0,0.00016438,2]
[328830688,1717854640487,-500.0,0.00016438,2]
[328830689,1717854640498,-500.0,0.00016438,2]
[328830690,1717854640508,-330.77252692,0.00016438,2]
[328830691,1717854640518,-500.0,0.00016438,2]
[328830692,1717854640528,-585.85,0.00016438,2]
[328830693,1717854640539,-689.56,0.00016438,2]
[328830694,1717854640552,-500.0,0.00016438,2]
[328830695,1717854640562,-502.7999317,0.00016438,2]
[328830696,1717854640572,-500.0,0.00016438,2]
[328830697,1717854640583,-501.01620068,0.00016438,2]
[328830698,1717854640593,-460.09871168,0.00016438,2]
[328830699,1717854640603,-500.0,0.00016438,2]
[328830700,1717854640613,-500.0,0.00016438,2]
[328830701,1717854640626,-1544.39,0.00016438,2]
[328830702,1717854640640,-500.0,0.00016438,2]
[328830703,1717854640650,-500.0,0.00016438,2]
[328830704,1717854640660,-594.86746173,0.00016438,2]
[328830705,1717854640671,-500.0,0.00016438,2]
[328830706,1717854640681,-500.0,0.00016438,2]
[328830707,1717854640691,-500.0,0.00016438,2]
[328830708,1717854640702,-1062.15,0.00016438,4]
[328830709,1717854640713,-500.0,0.00016438,2]
[328830710,1717854640723,-646.74,0.00016438,2]
[328830711,1717854640734,-500.0,0.00016438,2]
[328830712,1717854640745,-500.0,0.00016438,2]
[328830713,1717854640756,-500.0,0.00016438,2]
[328830714,1717854640766,-211.6403106,0.00016438,2]
[328830715,1717854640784,-288.3596894,0.00016438,2]
[328830716,1717854640794,-2.18968982,0.00016438,2]
[328830717,1717854640808,-497.81031018,0.00016438,2]
[328830718,1717854640818,-500.0,0.00016438,2]
[328830719,1717854640829,-500.0,0.00016438,2]
[328830720,1717854640839,-500.0,0.00016438,2]
[328830721,1717854640850,-500.0,0.00016438,2]
[328830722,1717854640860,-500.0,0.00016438,2]
[328830723,1717854640870,-500.0,0.00016438,2]
[328830724,1717854640880,-500.0,0.00016438,2]
[328830725,1717854640890,-500.0,0.00016438,2]
[328830726,1717854640900,-500.0,0.00016438,2]
[328830727,1717854640910,-500.0,0.00016438,2]